fUSD/lending_fUSD_20240406
["ID","MTS","AMOUNT","RATE_DAILY","PERIOD"]
[321702187,1712411435425,-500.0,0.00022399,2]
[321702188,1712411435435,-500.0,0.00022399,2]
[321702189,1712411435445,-500.0,0.00022399,2]
[321702190,1712411435455,-500.0,0.00022399,2]
[321702191,1712411435465,-500.0,0.00022399,2]
[321702192,1712411435474,-810.56,0.00022399,2]
[321702193,1712411435485,-117504.9553437,0.000224,3]
[321702194,1712411435497,-200.0,0.000224,2]
[321702195,1712411435507,-200.0,0.000224,2]
[321702196,1712411435516,-2207.23761795,0.000224,2]
[321702197,1712411435525,-10396.159311,0.00022408,2]
[321702198,1712411435536,-500.0,0.00022423,2]
[321702199,1712411435545,-500.0,0.00022423,2]
[321702200,1712411435556,-500.0,0.00022423,2]
[321702201,1712411435566,-500.0,0.00022423,2]
[321702202,1712411435576,-500.0,0.00022423,2]
[321702203,1712411435585,-500.0,0.00022423,2]
[321702204,1712411435596,-500.0,0.00022423,2]
[321702205,1712411435606,-500.0,0.00022423,2]
[321702206,1712411435615,-500.0,0.00022423,2]
[321702207,1712411435624,-656.34,0.00022423,2]
[321702208,1712411435634,-983.46,0.00022423,2]
[321702209,1712411435644,-454.87,0.00022423,2]
[321702210,1712411435654,-500.0,0.00022423,2]
[321702211,1712411435664,-500.0,0.00022423,2]
[321702212,1712411435673,-500.0,0.00022423,2]
[321702213,1712411435683,-500.0,0.00022423,2]
[321702214,1712411435693,-396.52,0.00022423,2]
[321702215,1712411435703,-500.0,0.00022423,2]
[321702216,1712411435713,-500.0,0.00022423,2]
[321702217,1712411435724,-500.0,0.00022423,2]
[321702218,1712411435734,-500.0,0.00022423,2]
[321702219,1712411435744,-500.0,0.00022423,2]
[321702220,1712411435754,-500.0,0.00022423,2]
[321702221,1712411435763,-500.0,0.00022423,2]
[321702222,1712411435772,-500.0,0.00022423,2]
[321702223,1712411435783,-1679.81,0.00022423,2]
[321702224,1712411435793,-500.0,0.00022423,2]
[321702225,1712411435804,-500.0,0.00022423,2]
[321702226,1712411435815,-500.0,0.00022423,2]
[321702227,1712411435825,-500.0,0.00022423,2]
[321702228,1712411435835,-500.0,0.00022423,2]
[321702229,1712411435845,-500.0,0.00022423,2]
[321702230,1712411435856,-500.0,0.00022423,2]
[321702231,1712411435866,-500.0,0.00022423,2]
[321702232,1712411435876,-500.0,0.00022423,2]
[321702233,1712411435887,-500.0,0.00022423,2]
[321702234,1712411435898,-500.0,0.00022423,2]
[321702235,1712411435907,-500.0,0.00022423,2]
[321702236,1712411435916,-421.53,0.00022438,2]
[321702237,1712411435927,-500.0,0.00022438,2]
[321702238,1712411435937,-500.0,0.00022438,2]
[321702239,1712411435947,-500.0,0.00022438,2]
[321702240,1712411435956,-542.68,0.00022438,2]
[321702241,1712411435966,-500.0,0.00022438,2]
[321702242,1712411435975,-500.0,0.00022438,2]
[321702243,1712411435984,-500.0,0.00022438,2]
[321702244,1712411435994,-500.0,0.00022438,2]
[321702245,1712411436004,-500.0,0.00022438,2]
[321702246,1712411436014,-500.0,0.00022438,2]
[321702247,1712411436024,-500.0,0.00022438,2]
[321702248,1712411436033,-536.34,0.00022438,2]
[321702249,1712411436043,-500.0,0.00022438,2]
[321702250,1712411436053,-500.0,0.00022438,2]
[321702251,1712411436063,-500.0,0.00022438,2]
[321702252,1712411436073,-500.0,0.00022438,2]
[321702253,1712411436083,-500.0,0.00022438,2]
[321702254,1712411436093,-500.0,0.00022438,2]
[321702255,1712411436103,-500.0,0.00022438,2]
[321702256,1712411436113,-981.89,0.00022438,2]
[321702257,1712411436123,-500.0,0.00022438,2]
[321702258,1712411436133,-500.0,0.00022438,2]
[321702259,1712411436144,-500.0,0.00022438,2]
[321702260,1712411436155,-500.0,0.00022438,2]
[321702261,1712411436166,-500.0,0.00022438,2]
[321702262,1712411436175,-500.0,0.00022438,2]
[321702263,1712411436185,-500.0,0.00022438,2]
[321702264,1712411436195,-500.0,0.00022438,2]
[321702265,1712411436205,-500.0,0.00022438,2]
[321702266,1712411436215,-339.27,0.00022438,2]
[321702267,1712411436224,-500.0,0.00022438,2]
[321702268,1712411436234,-437.0,0.000225,2]
[321702269,1712411436244,-1769.0,0.000225,2]
[321702270,1712411436256,-150.0,0.000225,2]
[321702271,1712411436266,-500.0,0.00022579,2]
[321702272,1712411436276,-500.0,0.00022579,2]
[321702273,1712411436286,-500.0,0.00022579,2]
[321702274,1712411436296,-500.0,0.00022579,2]
[321702275,1712411436306,-500.0,0.00022579,2]
[321702276,1712411436316,-500.0,0.00022579,2]
[321702277,1712411436326,-500.0,0.00022579,2]
[321702278,1712411436336,-500.0,0.00022579,2]
[321702279,1712411436346,-500.0,0.00022579,2]
[321702280,1712411436356,-656.34,0.00022579,2]
[321702281,1712411436365,-983.46,0.00022579,2]
[321702282,1712411436375,-500.0,0.00022579,2]
[321702283,1712411436385,-500.0,0.00022579,2]
[321702284,1712411436396,-500.0,0.00022579,2]
[321702285,1712411436407,-500.0,0.00022579,2]
[321702286,1712411436416,-500.0,0.00022579,2]
[321702287,1712411436426,-500.0,0.00022579,2]
[321702288,1712411436436,-500.0,0.00022579,2]
[321702289,1712411436446,-500.0,0.0002258,2]
[321702290,1712411436455,-500.0,0.0002258,2]
[321702291,1712411436465,-500.0,0.0002258,2]
[321702292,1712411436474,-500.0,0.0002258,2]
[321702293,1712411436484,-500.0,0.0002258,2]
[321702294,1712411436494,-500.0,0.0002258,2]
[321702295,1712411436505,-500.0,0.0002258,2]
[321702296,1712411436515,-500.0,0.0002258,2]
[321702297,1712411436524,-500.0,0.0002258,2]
[321702298,1712411436534,-500.0,0.0002258,2]
[321702299,1712411436543,-500.0,0.0002258,2]
[321702300,1712411436554,-500.0,0.0002258,2]
[321702301,1712411436564,-636.39,0.0002258,2]
[321702302,1712411436573,-500.0,0.0002258,2]
[321702303,1712411436583,-500.0,0.0002258,2]
[321702304,1712411436592,-534.52,0.0002258,2]
[321702305,1712411436602,-500.0,0.0002258,2]
[321702306,1712411436611,-500.0,0.0002258,2]
[321702307,1712411436621,-500.0,0.0002258,2]
[321702308,1712411436630,-500.0,0.0002258,2]
[321702309,1712411436640,-5217.57,0.0002258,2]
[321702310,1712411436650,-1130.04,0.0002258,2]
[321702311,1712411436659,-500.0,0.0002258,2]
[321702312,1712411436669,-500.0,0.0002258,2]
[321702313,1712411436678,-500.0,0.0002258,2]
[321702314,1712411436687,-360.7,0.0002258,2]
[321702315,1712411436696,-352.73,0.0002258,2]
[321702316,1712411436704,-500.0,0.0002258,2]
[321702317,1712411436714,-220.89,0.0002258,2]
[321702318,1712411436724,-245.47,0.0002258,2]
[321702319,1712411436733,-500.0,0.0002258,2]
[321702320,1712411436744,-298.29,0.0002258,2]
[321702321,1712411436754,-276.91,0.0002258,2]
[321702322,1712411436764,-500.0,0.0002258,2]
[321702323,1712411436775,-500.0,0.0002258,2]
[321702324,1712411436785,-500.0,0.0002258,2]
[321702325,1712411436797,-500.0,0.0002258,2]
[321702326,1712411436808,-500.0,0.0002258,2]
[321702327,1712411436818,-500.0,0.0002258,2]
[321702328,1712411436829,-584.98,0.0002258,2]
[321702329,1712411437032,-500.0,0.0002258,2]
[321702330,1712411437043,-500.0,0.0002258,2]
[321702331,1712411437053,-500.0,0.0002258,2]
[321702332,1712411437063,-541.13619772,0.0002258,2]
[321702333,1712411437072,-601.47091499,0.0002258,2]
[321702334,1712411437083,-500.0,0.0002258,2]
[321702335,1712411437093,-1951.96,0.0002258,2]
[321702336,1712411437104,-500.0,0.0002258,2]
[321702337,1712411437113,-500.0,0.0002258,2]
[321702338,1712411437123,-560.37,0.0002258,2]
[321702339,1712411437132,-563.38,0.0002258,2]
[321702340,1712411437142,-500.0,0.0002258,2]
[321702341,1712411437152,-330.69,0.0002258,2]
[321702343,1712411437164,-555.93,0.0002258,2]
[321702344,1712411437174,-571.64,0.0002258,2]
[321702346,1712411437183,-395.42,0.0002258,2]
[321702349,1712411437193,-362.49,0.0002258,2]
[321702351,1712411437204,-244.22,0.0002258,2]
[321702352,1712411437214,-224.29,0.0002258,2]
[321702354,1712411437224,-250.85600842,0.0002258,2]
[321702356,1712411437233,-502.90171081,0.0002258,2]
[321702357,1712411437244,-500.0,0.0002258,2]
[321702358,1712411437257,-713.7369697,0.00022587,2]
[321702359,1712411437268,-2267.86324037,0.00022588,2]
[321702360,1712411437277,-200.0,0.00022624,2]
[321702361,1712411437286,-200.0,0.00022624,2]
[321702362,1712411437296,-325.49432202,0.00022688,2]
[321702363,1712411437305,-943.44095623,0.00022717,2]
[321702364,1712411437315,-943.44095624,0.00022717,2]
[321702366,1712411437324,-713.7369697,0.00022876,2]
[321702367,1712411437332,-2267.86324037,0.00022877,2]
[321702368,1712411437342,-200.0,0.00022915,2]
[321702369,1712411437351,-204.53993871,0.00023,2]
[321702370,1712411437360,-10000.0,0.00023,2]
[321702371,1712411437369,-15946.05206322,0.00023,2]
[321702372,1712411437378,-1500.0,0.00023,3]
[321702373,1712411437387,-150.0,0.00023,2]
[321702374,1712411437396,-261.80838345,0.00023,2]
[321702375,1712411437406,-325.49432202,0.00023054,2]
[321702376,1712411437415,-871.3534068,0.000231,2]
[321702377,1712411437436,-713.7369697,0.00023165,2]
[321702378,1712411437446,-2267.86324037,0.00023166,2]
[321702379,1712411437456,-965.0,0.00023206,2]
[321702380,1712411437467,-459.0,0.00023206,2]
[321702381,1712411437477,-2430.0,0.00023206,2]
[321702382,1712411437488,-295.832,0.00023206,2]
[321702383,1712411437499,-150.0,0.00023206,2]
[321702384,1712411437510,-805.0,0.00023206,2]
[321702385,1712411437521,-1943.0,0.00023206,2]
[321702386,1712411437531,-435.0,0.00023206,2]
[321702387,1712411437541,-279.0,0.00023206,2]
[321702388,1712411437552,-607.0,0.00023206,2]
[321702389,1712411437563,-397.0,0.00023206,2]
[321702390,1712411437573,-3034.0,0.00023206,2]
[321702391,1712411437584,-1467.0,0.00023206,2]
[321702392,1712411437594,-1140.0,0.00023206,2]
[321702393,1712411437603,-150.0,0.00023206,2]
[321702394,1712411437613,-1633.0,0.00023206,2]
[321702395,1712411437623,-2433.0,0.00023206,2]
[321702396,1712411437633,-214.0,0.00023206,2]
[321702397,1712411437643,-354.0,0.00023206,2]
[321702398,1712411437654,-12305.809,0.00023206,2]
[321702399,1712411437664,-151.43,0.00023206,2]
[321702400,1712411437674,-151.0,0.00023206,2]
[321702401,1712411437684,-1100.557,0.00023206,2]
[321702402,1712411437694,-2230.91,0.00023206,2]
[321702403,1712411437705,-150.782,0.00023206,2]
[321702404,1712411437715,-4790.0,0.00023206,2]
[321702405,1712411437725,-267.982,0.00023206,2]
[321702406,1712411437735,-668.008,0.00023206,2]
[321702407,1712411437745,-150.0,0.00023206,2]
[321702408,1712411437756,-1051.0,0.00023206,2]
[321702409,1712411437766,-7500.0,0.00023211,2]
[321702410,1712411437777,-1500.0,0.00023211,2]
[321702411,1712411437787,-2651.08601762,0.00023212,2]
[321702412,1712411437797,-172.48230441,0.00023212,2]
[321702413,1712411437807,-180.97150638,0.00023212,2]
[321702414,1712411437817,-152.953454,0.00023212,2]
[321702415,1712411437826,-2359.48548037,0.00023212,2]
[321702416,1712411437836,-173.72522702,0.00023212,2]
[321702417,1712411437847,-1010.08476155,0.00023212,2]
[321702418,1712411437858,-393.51841282,0.00023212,2]
[321702420,1712411437868,-200.0,0.00023262,2]
[321702421,1712411437878,-800.0,0.00023262,2]
[321702422,1712411437887,-500.0,0.00023262,2]
[321702423,1712411437898,-200.0,0.00023262,2]
[321702424,1712411437907,-339.02,0.00023288,2]
[321702425,1712411437917,-1000.0,0.00023288,2]
[321702426,1712411437927,-1000.0,0.00023288,2]
[321702427,1712411437936,-169.65,0.00023295,15]
[321702428,1712411437946,-150.5,0.00023305,15]
[321702429,1712411437956,-189.76506729,0.00023307,2]
[321702430,1712411437967,-951.87374659,0.00023308,2]
[321702431,1712411437977,-500.0,0.00023308,2]
[321702432,1712411437987,-500.0,0.00023308,2]
[321702433,1712411437997,-1403.44428685,0.00023309,2]
[321702434,1712411438008,-567.71783646,0.0002331,2]
[321702435,1712411438017,-500.0,0.0002331,2]
[321702436,1712411438027,-500.0,0.0002331,2]
[321702437,1712411438037,-500.0,0.0002331,2]
[321702438,1712411438046,-500.0,0.0002331,2]
[321702439,1712411438057,-542.68,0.0002331,2]
[321702440,1712411438067,-500.0,0.0002331,2]
[321702441,1712411438078,-500.0,0.0002331,2]
[321702442,1712411438088,-500.0,0.0002331,2]
[321702443,1712411438097,-500.0,0.0002331,2]
[321702444,1712411438107,-500.0,0.0002331,2]
[321702445,1712411438117,-656.34,0.0002331,2]
[321702446,1712411438126,-500.0,0.0002331,2]
[321702447,1712411438135,-983.46,0.0002331,2]
[321702448,1712411438145,-500.0,0.0002331,2]
[321702449,1712411438156,-500.0,0.0002331,2]
[321702450,1712411438166,-500.0,0.0002331,2]
[321702451,1712411438175,-500.0,0.0002331,2]
[321702452,1712411438184,-500.0,0.0002331,2]
[321702453,1712411438194,-640.08300789,0.0002331,2]
[321702454,1712411438203,-981.89,0.0002331,2]
[321702455,1712411438213,-500.0,0.0002331,2]
[321702456,1712411438223,-500.0,0.0002331,2]
[321702457,1712411438232,-500.0,0.0002331,2]
[321702458,1712411438242,-500.0,0.0002331,2]
[321702459,1712411438253,-1679.81,0.0002331,2]
[321702460,1712411438263,-227.38,0.0002331,2]
[321702461,1712411438272,-500.0,0.0002331,2]
[321702462,1712411438282,-500.0,0.0002331,2]
[321702463,1712411438291,-500.0,0.0002331,2]
[321702464,1712411438301,-500.0,0.0002331,2]
[321702465,1712411438311,-13800.00907855,0.00023311,2]
[321702466,1712411438321,-377.0078044,0.00023311,2]
[321702467,1712411438331,-500.0,0.00023311,2]
[321702468,1712411438340,-500.0,0.00023311,2]
[321702469,1712411438350,-500.0,0.00023311,2]
[321702470,1712411438359,-500.0,0.00023311,2]
[321702471,1712411438369,-500.0,0.00023311,2]
[321702472,1712411438379,-500.0,0.00023311,2]
[321702473,1712411438389,-500.0,0.00023311,2]
[321702474,1712411438398,-500.0,0.00023311,2]
[321702475,1712411438408,-500.0,0.00023311,2]
[321702476,1712411438417,-500.0,0.00023311,2]
[321702477,1712411438427,-5217.57,0.00023311,2]
[321702478,1712411438436,-5217.57,0.00023311,2]
[321702479,1712411438446,-5217.57,0.00023311,2]
[321702480,1712411438455,-5217.57,0.00023311,2]
[321702481,1712411438465,-5217.57,0.00023311,2]
[321702482,1712411438474,-5217.57,0.00023311,2]
[321702483,1712411438487,-5217.57,0.00023311,2]
[321702484,1712411438498,-5217.57,0.00023311,2]
[321702485,1712411438507,-5217.57,0.00023311,2]
[321702486,1712411438517,-5217.57,0.00023311,2]
[321702487,1712411438527,-1130.04,0.00023311,2]
[321702488,1712411438536,-1130.04,0.00023311,2]
[321702489,1712411438546,-1130.04,0.00023311,2]
[321702490,1712411438556,-500.0,0.00023311,2]
[321702491,1712411438565,-1130.04,0.00023311,2]
[321702492,1712411438575,-500.0,0.00023311,2]
[321702493,1712411438585,-500.0,0.00023311,2]
[321702494,1712411438595,-1130.04,0.00023311,2]
[321702495,1712411438604,-500.0,0.00023311,2]
[321702496,1712411438614,-1130.04,0.00023311,2]
[321702497,1712411438624,-500.0,0.00023311,2]
[321702498,1712411438633,-1130.04,0.00023311,2]
[321702499,1712411438643,-500.0,0.00023311,2]
[321702500,1712411438653,-1130.04,0.00023311,2]
[321702501,1712411438663,-500.0,0.00023311,2]
[321702502,1712411438672,-1130.04,0.00023311,2]
[321702503,1712411438682,-1130.04,0.00023311,2]
[321702504,1712411438692,-500.0,0.00023311,2]
[321702505,1712411438702,-500.0,0.00023311,2]
[321702506,1712411438712,-500.0,0.00023311,2]
[321702507,1712411438722,-345.57,0.00023311,2]
[321702508,1712411438731,-500.0,0.00023311,2]
[321702509,1712411438741,-500.0,0.00023311,2]
[321702510,1712411438751,-500.0,0.00023311,2]
[321702511,1712411438760,-500.0,0.00023311,2]
[321702512,1712411438770,-500.0,0.00023311,2]
[321702513,1712411438779,-500.0,0.00023311,2]
[321702514,1712411438789,-500.0,0.00023311,2]
[321702515,1712411438799,-500.0,0.00023311,2]
[321702516,1712411438809,-500.0,0.00023311,2]
[321702517,1712411438819,-500.0,0.00023311,2]
[321702518,1712411438829,-614.09,0.00023311,2]
[321702519,1712411438838,-425.64,0.00023311,2]
[321702520,1712411438847,-500.0,0.00023311,2]
[321702521,1712411438857,-500.0,0.00023311,2]
[321702522,1712411438867,-214.18889149,0.00023311,2]
[321702523,1712411438876,-500.0,0.00023311,2]
[321702524,1712411438886,-500.0,0.00023311,2]
[321702525,1712411438895,-500.0,0.00023311,2]
[321702526,1712411438905,-500.0,0.00023311,2]
[321702527,1712411438914,-500.0,0.00023311,2]
[321702528,1712411438923,-500.72,0.00023311,2]
[321702529,1712411438933,-500.0,0.00023311,2]
[321702530,1712411438942,-500.0,0.00023311,2]
[321702531,1712411438951,-451.97,0.00023311,2]
[321702532,1712411438960,-500.0,0.00023311,2]
[321702533,1712411438969,-500.0,0.00023311,2]
[321702534,1712411438979,-500.0,0.00023311,2]
[321702535,1712411438988,-500.0,0.00023311,2]
[321702536,1712411438997,-500.0,0.00023311,2]
[321702537,1712411439008,-259.52373691,0.00023311,2]
[321702538,1712411439017,-500.0,0.00023311,2]
[321702539,1712411439026,-500.0,0.00023311,2]
[321702540,1712411439035,-500.0,0.00023311,2]
[321702541,1712411439046,-500.0,0.00023311,2]
[321702542,1712411439055,-500.0,0.00023311,2]
[321702543,1712411439065,-500.0,0.00023311,2]
[321702544,1712411439074,-500.0,0.00023311,2]
[321702545,1712411439083,-500.0,0.00023311,2]
[321702546,1712411439092,-500.0,0.00023311,2]
[321702547,1712411439102,-500.0,0.00023311,2]
[321702548,1712411439111,-542.68,0.00023311,2]
[321702549,1712411439121,-542.68,0.00023311,2]
[321702550,1712411439130,-542.68,0.00023311,2]
[321702551,1712411439139,-542.68,0.00023311,2]
[321702552,1712411439149,-542.68,0.00023311,2]
[321702553,1712411439159,-542.68,0.00023311,2]
[321702554,1712411439169,-542.68,0.00023311,2]
[321702555,1712411439179,-542.68,0.00023311,2]
[321702556,1712411439188,-542.68,0.00023311,2]
[321702557,1712411439199,-542.68,0.00023311,2]
[321702559,1712411439209,-500.0,0.00023311,2]
[321702560,1712411439218,-500.0,0.00023311,2]
[321702561,1712411439227,-500.0,0.00023311,2]
[321702562,1712411439238,-500.0,0.00023311,2]
[321702563,1712411439247,-500.0,0.00023311,2]
[321702564,1712411439257,-500.0,0.00023311,2]
[321702565,1712411439266,-500.0,0.00023311,2]
[321702566,1712411439276,-500.0,0.00023311,2]
[321702567,1712411439285,-500.0,0.00023311,2]
[321702568,1712411439295,-500.0,0.00023311,2]
[321702569,1712411439304,-500.0,0.00023311,2]
[321702570,1712411439314,-278.25,0.00023311,2]
[321702571,1712411439323,-500.0,0.00023311,2]
[321702572,1712411439332,-500.0,0.00023311,2]
[321702573,1712411439341,-500.0,0.00023311,2]
[321702574,1712411439350,-500.0,0.00023311,2]
[321702575,1712411439360,-500.0,0.00023311,2]
[321702576,1712411439436,-500.0,0.00023311,2]
[321702577,1712411439445,-1951.96,0.00023311,2]
[321702578,1712411439455,-1951.96,0.00023311,2]
[321702579,1712411439464,-1951.96,0.00023311,2]
[321702580,1712411439474,-1951.96,0.00023311,2]
[321702581,1712411439483,-1951.96,0.00023311,2]
[321702582,1712411439492,-500.0,0.00023311,2]
[321702583,1712411439502,-1951.96,0.00023311,2]
[321702584,1712411439511,-500.0,0.00023311,2]
[321702585,1712411439521,-1951.96,0.00023311,2]
[321702586,1712411439535,-500.0,0.00023311,2]
[321702587,1712411439545,-1951.96,0.00023311,2]
[321702588,1712411439555,-500.0,0.00023311,2]
[321702589,1712411439565,-1951.96,0.00023311,2]
[321702590,1712411439575,-500.0,0.00023311,2]
[321702591,1712411439584,-1951.96,0.00023311,2]
[321702592,1712411439594,-198.25,0.00023311,2]
[321702593,1712411439603,-500.0,0.00023311,2]
[321702594,1712411439612,-500.0,0.00023311,2]
[321702595,1712411439622,-500.0,0.00023311,2]
[321702596,1712411439631,-500.0,0.00023311,2]
[321702597,1712411439642,-500.0,0.00023311,2]
[321702598,1712411439652,-500.0,0.00023311,2]
[321702599,1712411439661,-500.0,0.00023311,2]
[321702600,1712411439670,-500.0,0.00023311,2]
[321702601,1712411439680,-500.0,0.00023311,2]
[321702602,1712411439689,-500.0,0.00023311,2]
[321702603,1712411439699,-500.0,0.00023311,2]
[321702604,1712411439708,-500.0,0.00023311,2]
[321702605,1712411439717,-500.0,0.00023311,2]
[321702606,1712411439727,-500.0,0.00023311,2]
[321702607,1712411439736,-500.0,0.00023311,2]
[321702608,1712411439745,-500.0,0.00023311,2]
[321702609,1712411439756,-500.0,0.00023311,2]
[321702610,1712411439766,-500.0,0.00023311,2]
[321702611,1712411439777,-500.0,0.00023311,2]
[321702612,1712411439788,-500.0,0.00023311,2]
[321702613,1712411439797,-500.0,0.00023311,2]
[321702614,1712411439807,-500.0,0.00023311,2]
[321702615,1712411439816,-500.0,0.00023311,2]
[321702616,1712411439825,-500.0,0.00023311,2]
[321702617,1712411439835,-547.32411629,0.00023311,2]
[321702618,1712411439846,-656.34,0.00023311,2]
[321702619,1712411439856,-656.34,0.00023311,2]
[321702620,1712411439865,-656.34,0.00023311,2]
[321702621,1712411439874,-656.34,0.00023311,2]
[321702622,1712411439883,-656.34,0.00023311,2]
[321702623,1712411439892,-656.34,0.00023311,2]
[321702624,1712411439902,-656.34,0.00023311,2]
[321702625,1712411439910,-656.34,0.00023311,2]
[321702626,1712411439920,-656.34,0.00023311,2]
[321702627,1712411439930,-500.0,0.00023311,2]
[321702628,1712411439940,-500.0,0.00023311,2]
[321702629,1712411439951,-500.0,0.00023311,2]
[321702630,1712411439962,-500.0,0.00023311,2]
[321702631,1712411439972,-500.0,0.00023311,2]
[321702632,1712411439982,-500.0,0.00023311,2]
[321702633,1712411439992,-500.0,0.00023311,2]
[321702634,1712411440004,-500.0,0.00023311,2]
[321702635,1712411440013,-250.0,0.00023311,2]
[321702636,1712411440023,-983.46,0.00023311,2]
[321702637,1712411440032,-983.46,0.00023311,2]
[321702638,1712411440042,-983.46,0.00023311,2]
[321702639,1712411440051,-983.46,0.00023311,2]
[321702640,1712411440060,-983.46,0.00023311,2]
[321702641,1712411440071,-983.46,0.00023311,2]
[321702642,1712411440080,-983.46,0.00023311,2]
[321702643,1712411440090,-983.46,0.00023311,2]
[321702644,1712411440099,-983.46,0.00023311,2]
[321702645,1712411440109,-500.0,0.00023311,2]
[321702646,1712411440118,-500.0,0.00023311,2]
[321702647,1712411440127,-500.0,0.00023311,2]
[321702648,1712411440136,-500.0,0.00023311,2]
[321702649,1712411440146,-337.15,0.00023311,2]
[321702650,1712411440158,-500.0,0.00023311,2]
[321702651,1712411440168,-500.0,0.00023311,2]
[321702652,1712411440177,-500.0,0.00023311,2]
[321702653,1712411440187,-500.0,0.00023311,2]
[321702654,1712411440196,-500.0,0.00023311,2]
[321702655,1712411440205,-500.0,0.00023311,2]
[321702656,1712411440215,-500.0,0.00023311,2]
[321702657,1712411440224,-500.0,0.00023311,2]
[321702658,1712411440234,-500.0,0.00023311,2]
[321702659,1712411440244,-500.0,0.00023311,2]
[321702660,1712411440254,-500.0,0.00023311,2]
[321702661,1712411440265,-500.0,0.00023311,2]
[321702662,1712411440274,-500.0,0.00023311,2]
[321702663,1712411440284,-500.0,0.00023311,2]
[321702664,1712411440294,-500.0,0.00023311,2]
[321702665,1712411440304,-500.0,0.00023311,2]
[321702666,1712411440313,-461.22,0.00023311,2]
[321702667,1712411440323,-500.0,0.00023311,2]
[321702668,1712411440333,-500.0,0.00023311,2]
[321702669,1712411440344,-615.83,0.00023311,2]
[321702670,1712411440353,-500.0,0.00023311,2]
[321702671,1712411440363,-500.0,0.00023311,2]
[321702672,1712411440374,-500.0,0.00023311,2]
[321702673,1712411440384,-500.0,0.00023311,2]
[321702674,1712411440394,-500.0,0.00023311,2]
[321702675,1712411440404,-500.0,0.00023311,2]
[321702676,1712411440414,-500.0,0.00023311,2]
[321702677,1712411440425,-500.0,0.00023311,2]
[321702678,1712411440434,-500.0,0.00023311,2]
[321702679,1712411440443,-500.0,0.00023311,2]
[321702680,1712411440453,-981.89,0.00023311,2]
[321702681,1712411440462,-981.89,0.00023311,2]
[321702682,1712411440471,-981.89,0.00023311,2]
[321702683,1712411440480,-981.89,0.00023311,2]
[321702684,1712411440491,-981.89,0.00023311,2]
[321702685,1712411440500,-981.89,0.00023311,2]
[321702686,1712411440510,-981.89,0.00023311,2]
[321702687,1712411440519,-981.89,0.00023311,2]
[321702688,1712411440529,-981.89,0.00023311,2]
[321702689,1712411440538,-981.89,0.00023311,2]
[321702690,1712411440547,-500.0,0.00023311,2]
[321702691,1712411440557,-500.0,0.00023311,2]
[321702692,1712411440567,-445.34,0.00023311,2]
[321702693,1712411440577,-500.0,0.00023311,2]
[321702694,1712411440586,-500.0,0.00023311,2]
[321702695,1712411440596,-500.0,0.00023311,2]
[321702696,1712411440606,-500.0,0.00023311,2]